[Event "Late-Titled-Tuesday-Blitz-September-05-2023"]
[Site "Chess.com"]
[Date "2023.09.05"]
[Round "3"]
[White "rickywsb"]
[Black "PetrolulSah"]
[Result "1-0"]
[WhiteElo "2375"]
[BlackElo "2170"]
[TimeControl "180+1"]
[EndTime "14:28:11 PDT"]
[Termination "rickywsb won by resignation"]

1. d4 {[%clk 0:03:00.9]} 1... d5 {[%clk 0:02:59.7]} 2. Bf4 {[%clk 0:03:00.6]}
2... Nf6 {[%clk 0:02:58.3]} 3. e3 {[%clk 0:03:00.8]} 3... c5 {[%clk 0:02:57.2]}
4. Nd2 {[%clk 0:03:00.2]} 4... Nc6 {[%clk 0:02:55.9]} 5. c3 {[%clk 0:02:59.3]}
5... Qb6 {[%clk 0:02:54.2]} 6. Qb3 {[%clk 0:02:57.1]} 6... c4 {[%clk 0:02:53.9]}
7. Qc2 {[%clk 0:02:57.3]} 7... g6 {[%clk 0:02:54.3]} 8. e4 {[%clk 0:02:47.6]}
8... e5 {[%clk 0:02:39]} 9. dxe5 {[%clk 0:02:27.6]} 9... Ng4 {[%clk 0:02:37.1]}
10. Nh3 {[%clk 0:02:27.5]} 10... Ncxe5 {[%clk 0:02:32.9]} 11. exd5 {[%clk
0:02:18.2]} 11... Bf5 {[%clk 0:02:25.8]} 12. Qa4+ {[%clk 0:02:10.4]} 12... Bd7
{[%clk 0:02:25.5]} 13. Qc2 {[%clk 0:02:06.3]} 13... Bc5 {[%clk 0:02:22.2]} 14.
Nxc4 {[%clk 0:01:57.2]} 14... Nxc4 {[%clk 0:02:18.6]} 15. Bxc4 {[%clk
0:01:57.2]} 15... O-O {[%clk 0:02:16.6]} 16. O-O {[%clk 0:01:47.7]} 16... Rfe8
{[%clk 0:02:11.9]} 17. b4 {[%clk 0:01:47]} 17... Bd6 {[%clk 0:02:07]} 18. Bd3
{[%clk 0:01:37.1]} 18... Ne5 {[%clk 0:01:44.1]} 19. Ng5 {[%clk 0:01:19.1]} 19...
Rac8 {[%clk 0:01:15.2]} 20. a3 {[%clk 0:00:39.2]} 20... Nxd3 {[%clk 0:00:48.2]}
21. Bxd6 {[%clk 0:00:39]} 21... Ne5 {[%clk 0:00:38.9]} 22. Bc5 {[%clk
0:00:35.6]} 22... Qf6 {[%clk 0:00:27.3]} 23. Ne4 {[%clk 0:00:35.4]} 23... Qf5
{[%clk 0:00:27.6]} 24. Rae1 {[%clk 0:00:29.3]} 24... Nc4 {[%clk 0:00:26.5]} 25.
f3 {[%clk 0:00:26.2]} 25... b6 {[%clk 0:00:25.5]} 26. Bd4 {[%clk 0:00:25.9]}
26... Nxa3 {[%clk 0:00:24.4]} 27. Qb3 {[%clk 0:00:25.7]} 27... Nc4 {[%clk
0:00:23.6]} 28. Nf6+ {[%clk 0:00:25.8]} 28... Kf8 {[%clk 0:00:22.3]} 29. Nxe8
{[%clk 0:00:23.2]} 29... Rxe8 {[%clk 0:00:21.2]} 30. Rxe8+ {[%clk 0:00:22.7]}
30... Bxe8 {[%clk 0:00:20.5]} 31. Qxc4 {[%clk 0:00:23]} 31... Qc2 {[%clk
0:00:20.3]} 32. Re1 {[%clk 0:00:22.5]} 1-0

[Event "Late-Titled-Tuesday-Blitz-September-05-2023"]
[Site "Chess.com"]
[Date "2023.09.05"]
[Round "3"]
[White "kingofthenil"]
[Black "Bigfish1995"]
[Result "0-1"]
[WhiteElo "2772"]
[BlackElo "3081"]
[TimeControl "180+1"]
[EndTime "14:28:16 PDT"]
[Termination "Bigfish1995 won on time"]

1. e4 {[%clk 0:03:00.9]} 1... a6 {[%clk 0:02:59]} 2. d4 {[%clk 0:02:59.4]} 2...
c6 {[%clk 0:02:57.9]} 3. Nf3 {[%clk 0:02:47]} 3... d5 {[%clk 0:02:57.5]} 4. e5
{[%clk 0:02:42]} 4... Bf5 {[%clk 0:02:51.8]} 5. Be2 {[%clk 0:02:41.8]} 5... e6
{[%clk 0:02:51.1]} 6. O-O {[%clk 0:02:42]} 6... h6 {[%clk 0:02:50.6]} 7. Nbd2
{[%clk 0:02:37.3]} 7... c5 {[%clk 0:02:49.8]} 8. c4 {[%clk 0:02:36.7]} 8... Nc6
{[%clk 0:02:49.2]} 9. cxd5 {[%clk 0:02:35.7]} 9... exd5 {[%clk 0:02:42.6]} 10.
a3 {[%clk 0:02:29.7]} 10... c4 {[%clk 0:02:26.5]} 11. Nxc4 {[%clk 0:02:15.9]}
11... dxc4 {[%clk 0:02:25.7]} 12. Bxc4 {[%clk 0:02:12.9]} 12... Rc8 {[%clk
0:02:18.6]} 13. Ba2 {[%clk 0:02:07.9]} 13... Na5 {[%clk 0:02:11.4]} 14. Re1
{[%clk 0:02:01.1]} 14... Bc2 {[%clk 0:02:10.2]} 15. Qe2 {[%clk 0:02:00.3]} 15...
Nb3 {[%clk 0:02:09.6]} 16. e6 {[%clk 0:01:59.5]} 16... f6 {[%clk 0:01:53.6]} 17.
Nh4 {[%clk 0:01:02]} 17... Qd5 {[%clk 0:01:32.7]} 18. Bf4 {[%clk 0:00:50.1]}
18... Ne7 {[%clk 0:01:26.3]} 19. Rad1 {[%clk 0:00:35.4]} 19... g5 {[%clk
0:01:20.3]} 20. Qh5+ {[%clk 0:00:32.6]} 20... Kd8 {[%clk 0:01:20.2]} 21. Qf7
{[%clk 0:00:19.5]} 21... gxf4 {[%clk 0:01:14.7]} 22. Qxf6 {[%clk 0:00:19.8]}
22... Rg8 {[%clk 0:01:15]} 23. Qxf4 {[%clk 0:00:11.7]} 23... Rc7 {[%clk
0:00:54.6]} 24. g3 {[%clk 0:00:07.2]} 24... Bg7 {[%clk 0:00:40.2]} 25. Rd2
{[%clk 0:00:05.9]} 25... Rf8 {[%clk 0:00:38.3]} 26. Qe3 {[%clk 0:00:05.2]} 26...
Bxd4 {[%clk 0:00:32.3]} 27. Bxb3 {[%clk 0:00:02.7]} 27... Bxe3 {[%clk
0:00:30.7]} 28. Rxd5+ {[%clk 0:00:01.7]} 28... Nxd5 {[%clk 0:00:30.2]} 0-1

[Event "Late-Titled-Tuesday-Blitz-September-05-2023"]
[Site "Chess.com"]
[Date "2023.09.05"]
[Round "3"]
[White "karinachess1"]
[Black "RamyresCoelho"]
[Result "1-0"]
[WhiteElo "2554"]
[BlackElo "2303"]
[TimeControl "180+1"]
[EndTime "14:28:16 PDT"]
[Termination "karinachess1 won by checkmate"]

1. c4 {[%clk 0:03:00.6]} 1... e5 {[%clk 0:02:59.5]} 2. Nc3 {[%clk 0:03:00.2]}
2... d6 {[%clk 0:02:59.4]} 3. d4 {[%clk 0:02:59.7]} 3... exd4 {[%clk 0:02:59.1]}
4. Qxd4 {[%clk 0:03:00.6]} 4... Nc6 {[%clk 0:03:00]} 5. Qd2 {[%clk 0:03:01]}
5... Nf6 {[%clk 0:03:00.7]} 6. b3 {[%clk 0:03:01.1]} 6... Be7 {[%clk 0:02:59.4]}
7. Bb2 {[%clk 0:03:01.6]} 7... O-O {[%clk 0:02:59.4]} 8. g3 {[%clk 0:03:02.1]}
8... Bf5 {[%clk 0:02:54.6]} 9. Bg2 {[%clk 0:03:02.4]} 9... a5 {[%clk 0:02:51.9]}
10. Nh3 {[%clk 0:03:00.9]} 10... Qd7 {[%clk 0:02:48.1]} 11. Nf4 {[%clk 0:03:01]}
11... Ne5 {[%clk 0:02:45.1]} 12. O-O {[%clk 0:02:44.3]} 12... c6 {[%clk
0:02:34.2]} 13. a4 {[%clk 0:02:41.3]} 13... Rfe8 {[%clk 0:02:30.7]} 14. Rad1
{[%clk 0:02:41.7]} 14... Rad8 {[%clk 0:02:30.3]} 15. Rfe1 {[%clk 0:02:31.3]}
15... Kh8 {[%clk 0:02:24.9]} 16. Nd3 {[%clk 0:02:23.5]} 16... Ng6 {[%clk
0:02:16.3]} 17. e4 {[%clk 0:02:21.3]} 17... Bh3 {[%clk 0:02:14.8]} 18. f4 {[%clk
0:02:20.5]} 18... Bxg2 {[%clk 0:02:13.8]} 19. Qxg2 {[%clk 0:02:21.4]} 19... Qg4
{[%clk 0:02:11.9]} 20. h3 {[%clk 0:02:09.4]} 20... Qc8 {[%clk 0:02:05.4]} 21.
Nf2 {[%clk 0:01:55.8]} 21... Bf8 {[%clk 0:02:04.2]} 22. Kh2 {[%clk 0:01:49.6]}
22... Qc7 {[%clk 0:02:02.9]} 23. Qf3 {[%clk 0:01:44.9]} 23... b6 {[%clk
0:01:57.7]} 24. Ne2 {[%clk 0:01:41.2]} 24... d5 {[%clk 0:01:55.9]} 25. e5 {[%clk
0:01:37.6]} 25... Ne4 {[%clk 0:01:53.1]} 26. Nxe4 {[%clk 0:01:36.6]} 26... dxe4
{[%clk 0:01:54]} 27. Qxe4 {[%clk 0:01:37]} 27... Rxd1 {[%clk 0:01:53.8]} 28.
Rxd1 {[%clk 0:01:37.1]} 28... f6 {[%clk 0:01:51.8]} 29. e6 {[%clk 0:01:17.1]}
29... f5 {[%clk 0:01:51.1]} 30. Qxf5 {[%clk 0:01:14.8]} 30... Qe7 {[%clk
0:01:48.6]} 31. Rd2 {[%clk 0:00:56.8]} 31... Qxe6 {[%clk 0:01:47.8]} 32. Qxe6
{[%clk 0:00:56.8]} 32... Rxe6 {[%clk 0:01:48.7]} 33. f5 {[%clk 0:00:57.3]} 33...
Ne5 {[%clk 0:01:42.6]} 34. fxe6 {[%clk 0:00:51.1]} 34... Nf3+ {[%clk 0:01:42]}
35. Kg2 {[%clk 0:00:51.6]} 35... Nxd2 {[%clk 0:01:42.9]} 36. Nd4 {[%clk
0:00:47.3]} 36... c5 {[%clk 0:01:40.5]} 37. Nc6 {[%clk 0:00:47.1]} 37... Nxb3
{[%clk 0:01:36.5]} 38. Bc3 {[%clk 0:00:45.1]} 38... Nd4 {[%clk 0:01:26.5]} 39.
Bxd4 {[%clk 0:00:44.8]} 39... cxd4 {[%clk 0:01:26.3]} 40. e7 {[%clk 0:00:45.3]}
40... Bxe7 {[%clk 0:01:26]} 41. Nxe7 {[%clk 0:00:46.2]} 41... g6 {[%clk
0:01:23.1]} 42. Kf3 {[%clk 0:00:46.5]} 42... Kg7 {[%clk 0:01:22.5]} 43. Ke4
{[%clk 0:00:47]} 43... Kf7 {[%clk 0:01:22.7]} 44. Nd5 {[%clk 0:00:47.5]} 44...
Ke6 {[%clk 0:01:20.7]} 45. Nxb6 {[%clk 0:00:47.1]} 45... d3 {[%clk 0:01:20.6]}
46. Kxd3 {[%clk 0:00:47.6]} 46... Kd6 {[%clk 0:01:20.8]} 47. Kd4 {[%clk
0:00:47.6]} 47... Kc6 {[%clk 0:01:21]} 48. c5 {[%clk 0:00:48]} 48... g5 {[%clk
0:01:20.7]} 49. Nc4 {[%clk 0:00:48.4]} 49... h5 {[%clk 0:01:21.1]} 50. Nxa5+
{[%clk 0:00:48.2]} 50... Kc7 {[%clk 0:01:20.6]} 51. Kd5 {[%clk 0:00:49.1]} 51...
g4 {[%clk 0:01:20.7]} 52. hxg4 {[%clk 0:00:49.6]} 52... hxg4 {[%clk 0:01:21.6]}
53. Nc4 {[%clk 0:00:49.9]} 53... Kb7 {[%clk 0:01:21.7]} 54. c6+ {[%clk
0:00:50.3]} 54... Ka6 {[%clk 0:01:22.6]} 55. Kc5 {[%clk 0:00:51.2]} 55... Ka7
{[%clk 0:01:22.3]} 56. Kd6 {[%clk 0:00:51.1]} 56... Ka6 {[%clk 0:01:21.3]} 57.
c7 {[%clk 0:00:49.6]} 57... Ka7 {[%clk 0:01:20.4]} 58. Ne5 {[%clk 0:00:49.4]}
58... Kb6 {[%clk 0:01:19.3]} 59. c8=Q {[%clk 0:00:48.8]} 59... Ka7 {[%clk
0:01:19.3]} 60. Qc7+ {[%clk 0:00:47.3]} 60... Ka8 {[%clk 0:01:18.3]} 61. Qc6+
{[%clk 0:00:47.6]} 61... Ka7 {[%clk 0:01:15.5]} 62. Qb5 {[%clk 0:00:47.4]} 62...
Ka8 {[%clk 0:01:15.5]} 63. Kc7 {[%clk 0:00:47.7]} 63... Ka7 {[%clk 0:01:15.2]}
64. Qb7# {[%clk 0:00:48.2]} 1-0

[Event "Late-Titled-Tuesday-Blitz-September-05-2023"]
[Site "Chess.com"]
[Date "2023.09.05"]
[Round "3"]
[White "GMAkobianSTL"]
[Black "BillieKimbah"]
[Result "0-1"]
[WhiteElo "2737"]
[BlackElo "3046"]
[TimeControl "180+1"]
[EndTime "14:28:20 PDT"]
[Termination "BillieKimbah won on time"]

1. d4 {[%clk 0:02:56.6]} 1... d5 {[%clk 0:03:00.3]} 2. c4 {[%clk 0:02:54.6]}
2... e6 {[%clk 0:03:00.5]} 3. Nc3 {[%clk 0:02:52.2]} 3... Nf6 {[%clk 0:03:00.5]}
4. cxd5 {[%clk 0:02:51.8]} 4... exd5 {[%clk 0:03:01.4]} 5. Bg5 {[%clk
0:02:50.9]} 5... c6 {[%clk 0:02:59.7]} 6. e3 {[%clk 0:02:49.1]} 6... Bd6 {[%clk
0:02:59.7]} 7. Bd3 {[%clk 0:02:48.3]} 7... O-O {[%clk 0:02:59.5]} 8. Nf3 {[%clk
0:02:46.5]} 8... Re8 {[%clk 0:02:54.6]} 9. O-O {[%clk 0:02:45.7]} 9... Bg4
{[%clk 0:02:54.2]} 10. h3 {[%clk 0:02:33.9]} 10... Bh5 {[%clk 0:02:53.1]} 11.
Be2 {[%clk 0:02:29.4]} 11... Nbd7 {[%clk 0:02:51.1]} 12. Nd2 {[%clk 0:02:09.6]}
12... Bxe2 {[%clk 0:02:41.8]} 13. Nxe2 {[%clk 0:02:09.3]} 13... Nf8 {[%clk
0:02:35.1]} 14. Bf4 {[%clk 0:02:07.6]} 14... Ne6 {[%clk 0:02:34.9]} 15. Bxd6
{[%clk 0:02:06.9]} 15... Qxd6 {[%clk 0:02:35.8]} 16. Qc2 {[%clk 0:02:04.2]}
16... g6 {[%clk 0:02:34.3]} 17. Rab1 {[%clk 0:02:03.2]} 17... a5 {[%clk
0:02:32]} 18. a3 {[%clk 0:01:56.3]} 18... a4 {[%clk 0:02:12]} 19. b4 {[%clk
0:01:46.3]} 19... axb3 {[%clk 0:02:06.5]} 20. Rxb3 {[%clk 0:01:45.5]} 20... b5
{[%clk 0:02:03.8]} 21. Rc1 {[%clk 0:01:37.6]} 21... Rec8 {[%clk 0:01:36.8]} 22.
Qc3 {[%clk 0:01:05.9]} 22... Nd7 {[%clk 0:01:17]} 23. Qb4 {[%clk 0:01:05.3]}
23... Qxb4 {[%clk 0:01:16.8]} 24. axb4 {[%clk 0:01:04.3]} 24... Nb6 {[%clk
0:01:17.3]} 25. Nf3 {[%clk 0:00:46.5]} 25... Nc4 {[%clk 0:01:16]} 26. Rc2 {[%clk
0:00:40.9]} 26... f6 {[%clk 0:01:12.2]} 27. Nc1 {[%clk 0:00:38.5]} 27... Ra1
{[%clk 0:01:09.6]} 28. Kh2 {[%clk 0:00:37.9]} 28... Rca8 {[%clk 0:01:10.2]} 29.
Nd3 {[%clk 0:00:37.1]} 29... R8a2 {[%clk 0:01:04.6]} 30. Rxa2 {[%clk 0:00:35.9]}
30... Rxa2 {[%clk 0:01:05.5]} 31. Kg1 {[%clk 0:00:33.9]} 31... Kf7 {[%clk
0:01:03.3]} 32. Nc5 {[%clk 0:00:27.8]} 32... g5 {[%clk 0:01:00.2]} 33. g4 {[%clk
0:00:23]} 33... Ng7 {[%clk 0:00:45.3]} 34. Rb1 {[%clk 0:00:19]} 34... h5 {[%clk
0:00:44.5]} 35. Kg2 {[%clk 0:00:10.4]} 35... Nxe3+ {[%clk 0:00:41.7]} 36. Kg3
{[%clk 0:00:09.9]} 36... h4+ {[%clk 0:00:41.7]} 0-1

[Event "Late-Titled-Tuesday-Blitz-September-05-2023"]
[Site "Chess.com"]
[Date "2023.09.05"]
[Round "3"]
[White "Triumphmate"]
[Black "jorquerino"]
[Result "1/2-1/2"]
[WhiteElo "2537"]
[BlackElo "2359"]
[TimeControl "180+1"]
[EndTime "14:28:22 PDT"]
[Termination "Game drawn - insufficient material"]

1. e4 {[%clk 0:03:00.9]} 1... d5 {[%clk 0:02:59.1]} 2. exd5 {[%clk 0:03:00.6]}
2... Qxd5 {[%clk 0:02:59.1]} 3. Nc3 {[%clk 0:03:01]} 3... Qa5 {[%clk 0:02:59.7]}
4. g3 {[%clk 0:03:01.5]} 4... Nf6 {[%clk 0:02:44.4]} 5. Bg2 {[%clk 0:03:01.6]}
5... Nc6 {[%clk 0:02:34.7]} 6. d3 {[%clk 0:03:01.7]} 6... Bd7 {[%clk 0:02:12.4]}
7. Ne2 {[%clk 0:03:00.4]} 7... O-O-O {[%clk 0:02:10.2]} 8. Be3 {[%clk
0:02:57.3]} 8... Ng4 {[%clk 0:01:58.8]} 9. a3 {[%clk 0:02:52]} 9... Nxe3 {[%clk
0:01:56.6]} 10. fxe3 {[%clk 0:02:52.9]} 10... Qh5 {[%clk 0:01:38.8]} 11. Nf4
{[%clk 0:02:48.4]} 11... Qxd1+ {[%clk 0:01:37.3]} 12. Rxd1 {[%clk 0:02:49.3]}
12... e6 {[%clk 0:01:27.2]} 13. O-O {[%clk 0:02:49.3]} 13... Ne7 {[%clk
0:01:19.1]} 14. e4 {[%clk 0:02:45.1]} 14... e5 {[%clk 0:01:12.7]} 15. Nfd5
{[%clk 0:02:44.5]} 15... Nxd5 {[%clk 0:01:11.8]} 16. Nxd5 {[%clk 0:02:43.6]}
16... Bc5+ {[%clk 0:01:11.2]} 17. Kh1 {[%clk 0:02:42.8]} 17... f6 {[%clk
0:01:03.6]} 18. b4 {[%clk 0:02:43.2]} 18... Bd6 {[%clk 0:00:54.4]} 19. c4 {[%clk
0:02:43.7]} 19... c6 {[%clk 0:00:49.3]} 20. Ne3 {[%clk 0:02:44.2]} 20... h5
{[%clk 0:00:44.8]} 21. h4 {[%clk 0:02:44.6]} 21... Kc7 {[%clk 0:00:37]} 22. Kh2
{[%clk 0:02:45]} 22... Be6 {[%clk 0:00:31.3]} 23. Bh3 {[%clk 0:02:45]} 23...
Bxh3 {[%clk 0:00:29.6]} 24. Kxh3 {[%clk 0:02:45.9]} 24... Rd7 {[%clk 0:00:28.4]}
25. Nf5 {[%clk 0:02:43.6]} 25... Rhd8 {[%clk 0:00:24.8]} 26. Rf3 {[%clk
0:02:35.6]} 26... Bf8 {[%clk 0:00:24.4]} 27. g4 {[%clk 0:02:34.4]} 27... hxg4+
{[%clk 0:00:22.8]} 28. Kxg4 {[%clk 0:02:35.3]} 28... a5 {[%clk 0:00:21.4]} 29.
c5 {[%clk 0:02:30.8]} 29... axb4 {[%clk 0:00:21.2]} 30. axb4 {[%clk 0:02:31.7]}
30... Ra8 {[%clk 0:00:21.2]} 31. d4 {[%clk 0:02:17]} 31... exd4 {[%clk
0:00:19.7]} 32. Nxd4 {[%clk 0:02:17.7]} 32... Kc8 {[%clk 0:00:15.5]} 33. Rfd3
{[%clk 0:02:17.4]} 33... Ra4 {[%clk 0:00:12.3]} 34. Ne6 {[%clk 0:02:15.4]} 34...
Rxd3 {[%clk 0:00:11.4]} 35. Rxd3 {[%clk 0:02:16.3]} 35... Be7 {[%clk 0:00:11.4]}
36. Rd4 {[%clk 0:02:10.6]} 36... g6 {[%clk 0:00:11]} 37. h5 {[%clk 0:02:09.9]}
37... gxh5+ {[%clk 0:00:10.1]} 38. Kxh5 {[%clk 0:02:10.8]} 38... b6 {[%clk
0:00:09.9]} 39. cxb6 {[%clk 0:02:09.1]} 39... Rxb4 {[%clk 0:00:10.1]} 40. Rxb4
{[%clk 0:01:59.3]} 40... Bxb4 {[%clk 0:00:11]} 41. Kg6 {[%clk 0:01:59.8]} 41...
Kb7 {[%clk 0:00:10.6]} 42. Kxf6 {[%clk 0:01:59.4]} 42... Kxb6 {[%clk 0:00:10.7]}
43. Nf4 {[%clk 0:01:56.7]} 43... Bc3+ {[%clk 0:00:10.2]} 44. Ke7 {[%clk
0:01:55]} 44... Kb5 {[%clk 0:00:10.3]} 45. Kd6 {[%clk 0:01:54.3]} 45... c5
{[%clk 0:00:10]} 46. Kd5 {[%clk 0:01:49.1]} 46... Bh8 {[%clk 0:00:07.3]} 47. Ng6
{[%clk 0:01:48.6]} 47... Bg7 {[%clk 0:00:06.8]} 48. Ne7 {[%clk 0:01:40.6]} 48...
c4 {[%clk 0:00:06.1]} 49. Nf5 {[%clk 0:01:41.3]} 49... c3 {[%clk 0:00:05.2]} 50.
Ne3 {[%clk 0:01:26.6]} 50... Kb4 {[%clk 0:00:05.3]} 51. e5 {[%clk 0:01:18.4]}
51... Bxe5 {[%clk 0:00:04.6]} 52. Kxe5 {[%clk 0:01:19.3]} 52... Kb3 {[%clk
0:00:04.9]} 53. Kd4 {[%clk 0:01:19.2]} 53... c2 {[%clk 0:00:05.1]} 54. Nxc2
{[%clk 0:01:19.5]} 1/2-1/2

[Event "Late-Titled-Tuesday-Blitz-September-05-2023"]
[Site "Chess.com"]
[Date "2023.09.05"]
[Round "3"]
[White "Witik"]
[Black "Sina_Movahed"]
[Result "0-1"]
[WhiteElo "2678"]
[BlackElo "2981"]
[TimeControl "180+1"]
[EndTime "14:28:24 PDT"]
[Termination "Sina_Movahed won by resignation"]

1. d4 {[%clk 0:02:54]} 1... Nf6 {[%clk 0:03:00]} 2. Bf4 {[%clk 0:02:53.1]} 2...
c5 {[%clk 0:02:54]} 3. e3 {[%clk 0:02:53.1]} 3... d5 {[%clk 0:02:48.4]} 4. c3
{[%clk 0:02:52.7]} 4... Nc6 {[%clk 0:02:47.8]} 5. Nd2 {[%clk 0:02:51.9]} 5...
Bf5 {[%clk 0:02:35]} 6. Ngf3 {[%clk 0:02:51.6]} 6... e6 {[%clk 0:02:34.5]} 7.
Nh4 {[%clk 0:02:51.8]} 7... Bg6 {[%clk 0:02:32.9]} 8. Qb3 {[%clk 0:02:49.4]}
8... Qc8 {[%clk 0:02:29.7]} 9. Nxg6 {[%clk 0:02:48.7]} 9... hxg6 {[%clk
0:02:29.9]} 10. h3 {[%clk 0:02:49.4]} 10... Be7 {[%clk 0:02:28.7]} 11. Be2
{[%clk 0:02:49.3]} 11... O-O {[%clk 0:02:28.5]} 12. O-O {[%clk 0:02:49.7]} 12...
Qd7 {[%clk 0:02:26]} 13. Rad1 {[%clk 0:02:37.6]} 13... Bd6 {[%clk 0:02:24.4]}
14. dxc5 {[%clk 0:02:32.5]} 14... Bxf4 {[%clk 0:02:22.6]} 15. exf4 {[%clk
0:02:32.5]} 15... Qe7 {[%clk 0:02:19.5]} 16. Qa3 {[%clk 0:02:29.2]} 16... a5
{[%clk 0:02:17.9]} 17. Nf3 {[%clk 0:02:11.4]} 17... Ne4 {[%clk 0:02:15.3]} 18.
c4 {[%clk 0:01:58.5]} 18... Nb4 {[%clk 0:01:58]} 19. cxd5 {[%clk 0:01:54.3]}
19... exd5 {[%clk 0:01:58.9]} 20. Qe3 {[%clk 0:01:48]} 20... Rad8 {[%clk
0:01:45.7]} 21. Ne5 {[%clk 0:01:29.1]} 21... Qxc5 {[%clk 0:01:35.2]} 22. Qxc5
{[%clk 0:01:17.4]} 22... Nxc5 {[%clk 0:01:36.1]} 23. a3 {[%clk 0:01:17.8]} 23...
Nc6 {[%clk 0:01:35.1]} 24. Nxc6 {[%clk 0:01:16.7]} 24... bxc6 {[%clk 0:01:36]}
25. Rc1 {[%clk 0:01:17.4]} 25... Ne6 {[%clk 0:01:34.2]} 26. g3 {[%clk 0:01:11]}
26... Rb8 {[%clk 0:01:31.8]} 27. Bg4 {[%clk 0:01:04.4]} 27... f5 {[%clk
0:01:30.7]} 28. Bd1 {[%clk 0:01:02.3]} 28... Nd4 {[%clk 0:01:28.6]} 29. b3
{[%clk 0:00:56.5]} 29... Rfe8 {[%clk 0:01:25]} 30. Rc3 {[%clk 0:00:53.2]} 30...
Kf8 {[%clk 0:01:20]} 31. Kg2 {[%clk 0:00:50.2]} 31... Ke7 {[%clk 0:01:17.9]} 32.
h4 {[%clk 0:00:48.4]} 32... Kd6 {[%clk 0:01:17.8]} 33. h5 {[%clk 0:00:48.2]}
33... gxh5 {[%clk 0:01:16.3]} 34. Bxh5 {[%clk 0:00:49.1]} 34... Rh8 {[%clk
0:01:14]} 35. Bd1 {[%clk 0:00:47.1]} 35... Nb5 {[%clk 0:01:12.9]} 36. Re3 {[%clk
0:00:42.3]} 36... Rbe8 {[%clk 0:01:11.7]} 37. a4 {[%clk 0:00:36.2]} 37... Nd4
{[%clk 0:01:11.3]} 38. Rfe1 {[%clk 0:00:35.8]} 38... Re4 {[%clk 0:01:08.3]} 39.
f3 {[%clk 0:00:33.6]} 39... Rxe3 {[%clk 0:01:08.6]} 40. Rxe3 {[%clk 0:00:34.5]}
40... g6 {[%clk 0:01:03.9]} 41. Re1 {[%clk 0:00:24.7]} 41... c5 {[%clk
0:01:03.5]} 42. Re3 {[%clk 0:00:20.1]} 42... Rb8 {[%clk 0:00:56.7]} 43. g4
{[%clk 0:00:19.9]} 43... c4 {[%clk 0:00:54.1]} 44. bxc4 {[%clk 0:00:19.7]} 44...
dxc4 {[%clk 0:00:55]} 45. Kg3 {[%clk 0:00:19]} 45... Rb1 {[%clk 0:00:54]} 0-1

[Event "Late-Titled-Tuesday-Blitz-September-05-2023"]
[Site "Chess.com"]
[Date "2023.09.05"]
[Round "3"]
[White "rdarruda"]
[Black "buenamor1972"]
[Result "1-0"]
[WhiteElo "2533"]
[BlackElo "2346"]
[TimeControl "180+1"]
[EndTime "14:28:25 PDT"]
[Termination "rdarruda won by resignation"]

1. Nf3 {[%clk 0:02:53]} 1... Nf6 {[%clk 0:02:57.7]} 2. d4 {[%clk 0:02:52.2]}
2... e6 {[%clk 0:02:57.6]} 3. Nc3 {[%clk 0:02:51.4]} 3... d5 {[%clk 0:02:56.9]}
4. Bg5 {[%clk 0:02:50.8]} 4... Be7 {[%clk 0:02:54.8]} 5. Bxf6 {[%clk 0:02:50.6]}
5... gxf6 {[%clk 0:02:54.1]} 6. e3 {[%clk 0:02:50.2]} 6... Nd7 {[%clk
0:02:51.6]} 7. Ne2 {[%clk 0:02:50]} 7... Nb6 {[%clk 0:02:44.7]} 8. c3 {[%clk
0:02:49.7]} 8... Bd7 {[%clk 0:02:42.3]} 9. Nf4 {[%clk 0:02:48.6]} 9... c6 {[%clk
0:02:35.1]} 10. Qc2 {[%clk 0:02:44.5]} 10... Qc7 {[%clk 0:02:34.6]} 11. O-O-O
{[%clk 0:02:42.9]} 11... O-O-O {[%clk 0:02:33.7]} 12. Kb1 {[%clk 0:02:42.6]}
12... Kb8 {[%clk 0:02:33.8]} 13. Rc1 {[%clk 0:02:42.4]} 13... e5 {[%clk
0:02:33]} 14. Nh5 {[%clk 0:02:36.4]} 14... Bg4 {[%clk 0:02:18.9]} 15. Ng3 {[%clk
0:02:34.8]} 15... e4 {[%clk 0:02:17.2]} 16. h3 {[%clk 0:02:34.9]} 16... Be6
{[%clk 0:02:12.7]} 17. Nh4 {[%clk 0:02:32.1]} 17... Qd7 {[%clk 0:02:12.4]} 18.
Ne2 {[%clk 0:02:14.4]} 18... f5 {[%clk 0:01:48.4]} 19. g3 {[%clk 0:02:14.1]}
19... Bxh4 {[%clk 0:01:48.5]} 20. gxh4 {[%clk 0:02:14.2]} 20... f6 {[%clk
0:01:47.1]} 21. Nf4 {[%clk 0:02:13.6]} 21... Bf7 {[%clk 0:01:47.2]} 22. Be2
{[%clk 0:02:13.9]} 22... Rdg8 {[%clk 0:01:42.4]} 23. Rhg1 {[%clk 0:02:13.9]}
23... Qe8 {[%clk 0:01:36]} 24. Rce1 {[%clk 0:02:02.3]} 24... Rxg1 {[%clk
0:01:35.6]} 25. Rxg1 {[%clk 0:02:01.6]} 25... Rg8 {[%clk 0:01:36.1]} 26. Qd1
{[%clk 0:02:01.7]} 26... Nc8 {[%clk 0:01:12]} 27. Rg3 {[%clk 0:02:00.3]} 27...
Rxg3 {[%clk 0:01:11]} 28. fxg3 {[%clk 0:02:01.2]} 28... Nd6 {[%clk 0:01:10.6]}
29. g4 {[%clk 0:01:55.7]} 29... Qg8 {[%clk 0:01:07.2]} 30. Qg1 {[%clk
0:01:54.4]} 30... Qg7 {[%clk 0:00:51.1]} 31. Qg3 {[%clk 0:01:52.3]} 31... Kc7
{[%clk 0:00:50.9]} 32. g5 {[%clk 0:01:50.4]} 32... Kd7 {[%clk 0:00:47.8]} 33.
Bh5 {[%clk 0:01:42.4]} 33... Ne8 {[%clk 0:00:42.6]} 34. Bxf7 {[%clk 0:01:28]}
34... Qxf7 {[%clk 0:00:42.3]} 35. g6 {[%clk 0:01:25.9]} 35... hxg6 {[%clk
0:00:40.7]} 36. Nxg6 {[%clk 0:01:24.9]} 36... Nd6 {[%clk 0:00:33.5]} 37. h5
{[%clk 0:01:23.6]} 37... b6 {[%clk 0:00:19.1]} 38. h6 {[%clk 0:01:21.4]} 38...
Kc7 {[%clk 0:00:18.3]} 39. Nh8 {[%clk 0:00:59.2]} 39... Qh5 {[%clk 0:00:10.8]}
40. Kc1 {[%clk 0:00:45.9]} 40... Qxh6 {[%clk 0:00:10.5]} 41. Qxd6+ {[%clk
0:00:45.2]} 41... Kxd6 {[%clk 0:00:10.3]} 42. Nf7+ {[%clk 0:00:45]} 1-0